[Event "Titled Tuesday Blitz July 26 Late 2022"]
[White "Abdrlauf, Elham"]
[Black "Goncalves, Davi Sulzbacher"]
[WhiteFideId "1533533"]
[BlackFideId "2154510"]
[WhiteElo "2429"]
[BlackElo "2107"]
[Result "1-0"]
[Round "01"]
[TimeControl "180+1"]
[Date "2022.07.26"]
[WhiteClock "0:00:46"]
[BlackClock "0:00:03"]

1. e4 {[%clk 0:02:56]}  c5 {[%clk 0:03:00]} 2. Ne2 {[%clk 0:02:55]}  Nc6 {[%clk 0:03:00]} 3. d4 {[%clk 0:02:54]}  cxd4 {[%clk 0:03:01]} 4. Nxd4 {[%clk 0:02:55]}  Nf6 {[%clk 0:03:01]} 5. Nc3 {[%clk 0:02:55]}  e5 {[%clk 0:03:02]} 6. Nde2 {[%clk 0:02:54]}  Bb4 {[%clk 0:03:00]} 7. a3 {[%clk 0:02:54]}  Ba5 {[%clk 0:03:00]} 8. b4 {[%clk 0:02:54]}  Bb6 {[%clk 0:03:00]} 9. Qd6 {[%clk 0:02:54]}  Qe7 {[%clk 0:02:46]} 10. Qxe7+ {[%clk 0:02:53]}  Nxe7 {[%clk 0:02:47]} 11. Bg5 {[%clk 0:02:49]}  a5 {[%clk 0:02:41]} 12. b5 {[%clk 0:02:37]}  d5 {[%clk 0:02:35]} 13. Bxf6 {[%clk 0:02:29]}  gxf6 {[%clk 0:02:36]} 14. Nxd5 {[%clk 0:02:29]}  Nxd5 {[%clk 0:02:35]} 15. exd5 {[%clk 0:02:30]}  Bf5 {[%clk 0:02:35]} 16. c4 {[%clk 0:02:29]}  Rc8 {[%clk 0:02:27]} 17. Rc1 {[%clk 0:02:24]}  Ke7 {[%clk 0:02:08]} 18. Ng3 {[%clk 0:02:20]}  Bd7 {[%clk 0:02:08]} 19. Bd3 {[%clk 0:02:20]}  Bxb5 {[%clk 0:01:51]} 20. Ke2 {[%clk 0:02:20]}  Ba6 {[%clk 0:01:45]} 21. Nf5+ {[%clk 0:01:32]}  Kd7 {[%clk 0:01:45]} 22. f3 {[%clk 0:01:29]}  Bc5 {[%clk 0:01:44]} 23. a4 {[%clk 0:01:28]}  Bb4 {[%clk 0:01:38]} 24. Ng3 {[%clk 0:01:25]}  Rc7 {[%clk 0:01:27]} 25. Rc2 {[%clk 0:01:22]}  Rhc8 {[%clk 0:01:25]} 26. Bf5+ {[%clk 0:01:22]}  Ke7 {[%clk 0:01:21]} 27. Bxc8 {[%clk 0:01:22]}  Rxc8 {[%clk 0:01:11]} 28. Kd3 {[%clk 0:01:14]}  Rc5 {[%clk 0:01:08]} 29. Nf5+ {[%clk 0:01:14]}  Kd7 {[%clk 0:01:08]} 30. Ne3 {[%clk 0:01:15]}  Rc8 {[%clk 0:01:02]} 31. g4 {[%clk 0:01:08]}  Bc5 {[%clk 0:00:57]} 32. Rb1 {[%clk 0:01:05]}  Rh8 {[%clk 0:00:39]} 33. Rcb2 {[%clk 0:00:56]}  h5 {[%clk 0:00:33]} 34. Rxb7+ {[%clk 0:00:55]}  Bxb7 {[%clk 0:00:34]} 35. Rxb7+ {[%clk 0:00:55]}  Kc8 {[%clk 0:00:35]} 36. Rxf7 {[%clk 0:00:54]}  hxg4 {[%clk 0:00:35]} 37. Nxg4 {[%clk 0:00:55]}  Bg1 {[%clk 0:00:20]} 38. Rxf6 {[%clk 0:00:53]}  Bxh2 {[%clk 0:00:18]} 39. Ra6 {[%clk 0:00:53]}  Kb7 {[%clk 0:00:14]} 40. Rxa5 {[%clk 0:00:53]}  Bf4 {[%clk 0:00:14]} 41. Rb5+ {[%clk 0:00:53]}  Ka6 {[%clk 0:00:14]} 42. c5 {[%clk 0:00:54]}  Rh1 {[%clk 0:00:09]} 43. Ke4 {[%clk 0:00:54]}  Re1+ {[%clk 0:00:09]} 44. Kf5 {[%clk 0:00:54]}  Bd2 {[%clk 0:00:07]} 45. d6 {[%clk 0:00:49]}  Ba5 {[%clk 0:00:07]} 46. c6 {[%clk 0:00:48]}  Rd1 {[%clk 0:00:06]} 47. c7 {[%clk 0:00:47]}  Rc1 {[%clk 0:00:05]} 48. Nxe5 {[%clk 0:00:47]}  Rc3 {[%clk 0:00:03]} 49. Ke6 {[%clk 0:00:47]}  Bxc7 {[%clk 0:00:02]} 50. dxc7 {[%clk 0:00:48]}  Rc6+ {[%clk 0:00:03]} 51. Kd7 {[%clk 0:00:46]} 1-0


[Site "https://www.chess.com"]

[Event "Titled Tuesday Blitz July 26 Late 2022"]
[White "Averjanov, Alexey"]
[Black "Thiel, Thomas"]
[WhiteFideId "14109867"]
[BlackFideId "4615964"]
[WhiteElo "2635"]
[BlackElo "2302"]
[Result "1/2-1/2"]
[Round "01"]
[TimeControl "180+1"]
[Date "2022.07.27"]
[WhiteClock "0:00:15"]
[BlackClock "0:00:58"]

1. d4 {[%clk 0:02:59]}  Nf6 {[%clk 0:02:59]} 2. c4 {[%clk 0:02:58]}  g6 {[%clk 0:02:57]} 3. Nc3 {[%clk 0:02:57]}  d5 {[%clk 0:02:57]} 4. cxd5 {[%clk 0:02:57]}  Nxd5 {[%clk 0:02:56]} 5. e4 {[%clk 0:02:57]}  Nxc3 {[%clk 0:02:56]} 6. bxc3 {[%clk 0:02:57]}  Bg7 {[%clk 0:02:54]} 7. Nf3 {[%clk 0:02:57]}  c5 {[%clk 0:02:52]} 8. Be3 {[%clk 0:02:57]}  Qa5 {[%clk 0:02:49]} 9. Qd2 {[%clk 0:02:57]}  Nc6 {[%clk 0:02:46]} 10. Rc1 {[%clk 0:02:57]}  cxd4 {[%clk 0:02:46]} 11. cxd4 {[%clk 0:02:56]}  Qxd2+ {[%clk 0:02:46]} 12. Kxd2 {[%clk 0:02:56]}  O-O {[%clk 0:02:45]} 13. d5 {[%clk 0:02:56]}  Rd8 {[%clk 0:02:44]} 14. Ke1 {[%clk 0:02:56]}  Na5 {[%clk 0:02:40]} 15. Bg5 {[%clk 0:02:56]}  Bd7 {[%clk 0:02:36]} 16. Bd3 {[%clk 0:02:55]}  Kf8 {[%clk 0:02:29]} 17. Bd2 {[%clk 0:02:55]}  b6 {[%clk 0:02:28]} 18. Ba6 {[%clk 0:02:50]}  Bc8 {[%clk 0:02:20]} 19. Bb5 {[%clk 0:02:46]}  Bd7 {[%clk 0:02:15]} 20. Ba6 {[%clk 0:02:43]}  Bc8 {[%clk 0:02:15]} 21. Bb5 {[%clk 0:02:40]}  Bd7 {[%clk 0:02:15]} 22. Bxd7 {[%clk 0:02:32]}  Rxd7 {[%clk 0:02:14]} 23. Bb4 {[%clk 0:02:28]}  f5 {[%clk 0:02:11]} 24. exf5 {[%clk 0:02:00]}  gxf5 {[%clk 0:02:10]} 25. Ke2 {[%clk 0:01:55]}  Nb7 {[%clk 0:01:49]} 26. Rhd1 {[%clk 0:01:53]}  Rad8 {[%clk 0:01:49]} 27. Ng5 {[%clk 0:01:52]}  Kg8 {[%clk 0:01:47]} 28. Ne6 {[%clk 0:01:51]}  Rb8 {[%clk 0:01:45]} 29. Nxg7 {[%clk 0:01:46]}  Kxg7 {[%clk 0:01:45]} 30. Rc6 {[%clk 0:01:44]}  Kf7 {[%clk 0:01:43]} 31. f4 {[%clk 0:01:37]}  Rbd8 {[%clk 0:01:41]} 32. h3 {[%clk 0:01:29]}  Nd6 {[%clk 0:01:38]} 33. Ke3 {[%clk 0:01:21]}  Ne4 {[%clk 0:01:36]} 34. Re6 {[%clk 0:01:15]}  Nf6 {[%clk 0:01:35]} 35. Re5 {[%clk 0:00:44]}  Nxd5+ {[%clk 0:01:35]} 36. Rdxd5 {[%clk 0:00:44]}  Rxd5 {[%clk 0:01:35]} 37. Rxe7+ {[%clk 0:00:44]}  Kg6 {[%clk 0:01:34]} 38. Rxa7 {[%clk 0:00:42]}  Rd3+ {[%clk 0:01:31]} 39. Kf2 {[%clk 0:00:42]}  R3d4 {[%clk 0:01:31]} 40. a3 {[%clk 0:00:39]}  Rxf4+ {[%clk 0:01:30]} 41. Kg3 {[%clk 0:00:39]}  Re4 {[%clk 0:01:30]} 42. Rb7 {[%clk 0:00:33]}  Rd3+ {[%clk 0:01:29]} 43. Kh2 {[%clk 0:00:33]}  Re6 {[%clk 0:01:28]} 44. Bf8 {[%clk 0:00:24]}  f4 {[%clk 0:01:27]} 45. Rg7+ {[%clk 0:00:22]}  Kf5 {[%clk 0:01:27]} 46. Rf7+ {[%clk 0:00:22]}  Ke4 {[%clk 0:01:26]} 47. Bb4 {[%clk 0:00:20]}  Rd5 {[%clk 0:01:24]} 48. Rxh7 {[%clk 0:00:17]}  f3 {[%clk 0:01:21]} 49. gxf3+ {[%clk 0:00:17]}  Kxf3 {[%clk 0:01:21]} 50. Rf7+ {[%clk 0:00:17]}  Ke4 {[%clk 0:01:21]} 51. Kg3 {[%clk 0:00:17]}  Rf5 {[%clk 0:01:19]} 52. Rxf5 {[%clk 0:00:15]}  Kxf5 {[%clk 0:01:18]} 53. h4 {[%clk 0:00:16]}  Re4 {[%clk 0:01:18]} 54. h5 {[%clk 0:00:15]}  Kg5 {[%clk 0:01:13]} 55. Kf3 {[%clk 0:00:15]}  Rc4 {[%clk 0:01:13]} 56. Ke3 {[%clk 0:00:15]}  Kxh5 {[%clk 0:01:12]} 57. Kd3 {[%clk 0:00:15]}  Rg4 {[%clk 0:01:06]} 58. Kc3 {[%clk 0:00:14]}  Kg6 {[%clk 0:01:06]} 59. a4 {[%clk 0:00:15]}  Kf5 {[%clk 0:01:05]} 60. a5 {[%clk 0:00:15]}  bxa5 {[%clk 0:01:00]} 61. Bxa5 {[%clk 0:00:16]}  Ra4 {[%clk 0:00:59]} 62. Bb4 {[%clk 0:00:16]}  Ke6 {[%clk 0:00:59]} 63. Kb3 {[%clk 0:00:16]}  Rxb4+ {[%clk 0:00:58]} 64. Kxb4 {[%clk 0:00:15]} 1/2-1/2


[Site "https://www.chess.com"]

[Event "Titled Tuesday Blitz July 26 Late 2022"]
[White "Barp, Alberto"]
[Black "Gallana, Marco"]
[WhiteFideId "872555"]
[BlackFideId "824542"]
[WhiteElo "2229"]
[BlackElo "2290"]
[Result "1/2-1/2"]
[Round "01"]
[TimeControl "180+1"]
[Date "2022.07.27"]
[WhiteClock "0:01:25"]
[BlackClock "0:00:37"]

1. d4 {[%clk 0:02:46]}  Nf6 {[%clk 0:02:58]} 2. Nf3 {[%clk 0:02:44]}  g6 {[%clk 0:02:56]} 3. Bf4 {[%clk 0:02:41]}  Bg7 {[%clk 0:02:53]} 4. e3 {[%clk 0:02:38]}  O-O {[%clk 0:02:52]} 5. h3 {[%clk 0:02:37]}  c5 {[%clk 0:02:51]} 6. Nbd2 {[%clk 0:02:36]}  b6 {[%clk 0:02:48]} 7. Bd3 {[%clk 0:02:33]}  Bb7 {[%clk 0:02:46]} 8. O-O {[%clk 0:02:33]}  d6 {[%clk 0:02:45]} 9. Qe2 {[%clk 0:02:33]}  Nc6 {[%clk 0:02:40]} 10. c3 {[%clk 0:02:33]}  Re8 {[%clk 0:02:33]} 11. Bh2 {[%clk 0:02:32]}  e5 {[%clk 0:02:31]} 12. dxe5 {[%clk 0:02:32]}  Nxe5 {[%clk 0:02:27]} 13. Nxe5 {[%clk 0:02:31]}  dxe5 {[%clk 0:02:27]} 14. Bc4 {[%clk 0:02:29]}  Qe7 {[%clk 0:02:20]} 15. Rfd1 {[%clk 0:02:27]}  Rad8 {[%clk 0:02:16]} 16. Nf3 {[%clk 0:02:27]}  Ne4 {[%clk 0:02:14]} 17. Rxd8 {[%clk 0:02:23]}  Rxd8 {[%clk 0:02:14]} 18. Rd1 {[%clk 0:02:24]}  Nd6 {[%clk 0:01:54]} 19. Bd5 {[%clk 0:02:20]}  Bxd5 {[%clk 0:01:48]} 20. Rxd5 {[%clk 0:02:21]}  f6 {[%clk 0:01:48]} 21. Qd1 {[%clk 0:02:19]}  Nf7 {[%clk 0:01:47]} 22. c4 {[%clk 0:02:11]}  Rxd5 {[%clk 0:01:45]} 23. Qxd5 {[%clk 0:02:12]}  Qd8 {[%clk 0:01:37]} 24. Nd2 {[%clk 0:02:04]}  Qxd5 {[%clk 0:01:32]} 25. cxd5 {[%clk 0:02:05]}  Nd6 {[%clk 0:01:29]} 26. f4 {[%clk 0:02:05]}  e4 {[%clk 0:01:20]} 27. Kf2 {[%clk 0:02:01]}  f5 {[%clk 0:01:20]} 28. b3 {[%clk 0:02:01]}  Kf7 {[%clk 0:01:19]} 29. Ke2 {[%clk 0:02:01]}  Ke7 {[%clk 0:01:17]} 30. Nc4 {[%clk 0:02:00]}  Nxc4 {[%clk 0:01:13]} 31. bxc4 {[%clk 0:02:01]}  Kd6 {[%clk 0:01:04]} 32. a4 {[%clk 0:02:01]}  a6 {[%clk 0:01:04]} 33. Kd1 {[%clk 0:02:00]}  b5 {[%clk 0:01:04]} 34. cxb5 {[%clk 0:02:01]}  axb5 {[%clk 0:01:04]} 35. axb5 {[%clk 0:02:00]}  Kxd5 {[%clk 0:01:05]} 36. Bg3 {[%clk 0:01:52]}  c4 {[%clk 0:01:03]} 37. Be1 {[%clk 0:01:48]}  Kc5 {[%clk 0:01:02]} 38. Kc2 {[%clk 0:01:48]}  Kxb5 {[%clk 0:01:02]} 39. g4 {[%clk 0:01:47]}  h5 {[%clk 0:01:01]} 40. gxh5 {[%clk 0:01:47]}  gxh5 {[%clk 0:01:01]} 41. Bd2 {[%clk 0:01:48]}  Kc5 {[%clk 0:00:57]} 42. Ba5 {[%clk 0:01:47]}  Kd5 {[%clk 0:00:57]} 43. Bb4 {[%clk 0:01:45]}  Bf6 {[%clk 0:00:57]} 44. Be1 {[%clk 0:01:45]}  Be7 {[%clk 0:00:57]} 45. Ba5 {[%clk 0:01:42]}  Bc5 {[%clk 0:00:56]} 46. Bd2 {[%clk 0:01:42]}  Bb6 {[%clk 0:00:56]} 47. Bc1 {[%clk 0:01:41]}  Ba5 {[%clk 0:00:56]} 48. Ba3 {[%clk 0:01:41]}  Kc6 {[%clk 0:00:50]} 49. Bc1 {[%clk 0:01:39]}  Kb5 {[%clk 0:00:50]} 50. Ba3 {[%clk 0:01:39]}  Ka4 {[%clk 0:00:50]} 51. Bc5 {[%clk 0:01:39]}  Bb4 {[%clk 0:00:49]} 52. Bd4 {[%clk 0:01:39]}  Ka3 {[%clk 0:00:49]} 53. Ba7 {[%clk 0:01:38]}  Ka2 {[%clk 0:00:48]} 54. Bd4 {[%clk 0:01:38]}  Ka3 {[%clk 0:00:46]} 55. Bb2+ {[%clk 0:01:38]}  Ka4 {[%clk 0:00:46]} 56. Bd4 {[%clk 0:01:39]}  Kb5 {[%clk 0:00:46]} 57. Bb2 {[%clk 0:01:39]}  Kc6 {[%clk 0:00:46]} 58. Be5 {[%clk 0:01:37]}  Kd5 {[%clk 0:00:45]} 59. Bb2 {[%clk 0:01:36]}  Ba5 {[%clk 0:00:44]} 60. Bc1 {[%clk 0:01:36]}  Kc5 {[%clk 0:00:41]} 61. Ba3+ {[%clk 0:01:36]}  Kb5 {[%clk 0:00:41]} 62. Bb2 {[%clk 0:01:37]}  Bb6 {[%clk 0:00:40]} 63. Bc1 {[%clk 0:01:37]}  Kb4 {[%clk 0:00:41]} 64. Bd2+ {[%clk 0:01:37]}  Ka4 {[%clk 0:00:41]} 65. Bc1 {[%clk 0:01:38]}  Bc5 {[%clk 0:00:39]} 66. Kc3 {[%clk 0:01:36]}  Kb5 {[%clk 0:00:39]} 67. Kc2 {[%clk 0:01:37]}  Bb4 {[%clk 0:00:38]} 68. Bb2 {[%clk 0:01:37]}  Kc5 {[%clk 0:00:38]} 69. Bd4+ {[%clk 0:01:36]}  Kd5 {[%clk 0:00:39]} 70. Bb2 {[%clk 0:01:34]}  Be7 {[%clk 0:00:39]} 71. Bc3 {[%clk 0:01:33]}  Bh4 {[%clk 0:00:39]} 72. Bd2 {[%clk 0:01:33]}  Bf2 {[%clk 0:00:40]} 73. Bc1 {[%clk 0:01:33]}  Kc5 {[%clk 0:00:40]} 74. Kc3 {[%clk 0:01:32]}  Kb5 {[%clk 0:00:40]} 75. Kc2 {[%clk 0:01:32]}  Kb4 {[%clk 0:00:40]} 76. Bd2+ {[%clk 0:01:32]}  Ka4 {[%clk 0:00:40]} 77. Bc1 {[%clk 0:01:33]}  Be1 {[%clk 0:00:39]} 78. Bb2 {[%clk 0:01:32]}  Kb4 {[%clk 0:00:39]} 79. Bf6 {[%clk 0:01:29]}  c3 {[%clk 0:00:40]} 80. Kd1 {[%clk 0:01:28]}  Bd2 {[%clk 0:00:39]} 81. Bd4 {[%clk 0:01:28]}  Kc4 {[%clk 0:00:39]} 82. Kc2 {[%clk 0:01:28]}  Kb4 {[%clk 0:00:39]} 83. Ba7 {[%clk 0:01:28]}  Kc4 {[%clk 0:00:38]} 84. Bd4 {[%clk 0:01:27]}  Be1 {[%clk 0:00:37]} 85. Ba7 {[%clk 0:01:25]}  Bd2 {[%clk 0:00:37]} 86. Bd4 {[%clk 0:01:25]} 1/2-1/2


[Site "https://www.chess.com"]

[Event "Titled Tuesday Blitz July 26 Late 2022"]
[White "Bartholomew, John"]
[Black "Bogaudinov, Rushan"]
[WhiteFideId "2019353"]
[BlackFideId "4129288"]
[WhiteElo "2751"]
[BlackElo "2010"]
[Result "1-0"]
[Round "01"]
[TimeControl "180+1"]
[Date "2022.07.27"]
[WhiteClock "0:00:22"]
[BlackClock "0:00:34"]

1. d4 {[%clk 0:02:57]}  d5 {[%clk 0:02:59]} 2. c4 {[%clk 0:02:56]}  c6 {[%clk 0:03:00]} 3. cxd5 {[%clk 0:02:54]}  cxd5 {[%clk 0:03:00]} 4. Nf3 {[%clk 0:02:54]}  e6 {[%clk 0:03:00]} 5. Nc3 {[%clk 0:02:55]}  Nc6 {[%clk 0:03:00]} 6. Bf4 {[%clk 0:02:55]}  a6 {[%clk 0:03:00]} 7. Rc1 {[%clk 0:02:54]}  Nf6 {[%clk 0:03:00]} 8. e3 {[%clk 0:02:54]}  Be7 {[%clk 0:03:00]} 9. Bd3 {[%clk 0:02:54]}  O-O {[%clk 0:02:59]} 10. h3 {[%clk 0:02:54]}  Bd7 {[%clk 0:02:46]} 11. Ne5 {[%clk 0:02:51]}  Rc8 {[%clk 0:02:45]} 12. Bb1 {[%clk 0:02:46]}  Nxe5 {[%clk 0:02:38]} 13. dxe5 {[%clk 0:02:41]}  Ne8 {[%clk 0:02:38]} 14. Qd3 {[%clk 0:02:33]}  g6 {[%clk 0:02:38]} 15. Bh6 {[%clk 0:02:32]}  Ng7 {[%clk 0:02:38]} 16. h4 {[%clk 0:02:32]}  Bb5 {[%clk 0:02:33]} 17. Qd1 {[%clk 0:02:22]}  Re8 {[%clk 0:02:24]} 18. h5 {[%clk 0:02:13]}  Nf5 {[%clk 0:02:12]} 19. hxg6 {[%clk 0:01:52]}  hxg6 {[%clk 0:02:12]} 20. Bxf5 {[%clk 0:01:16]}  exf5 {[%clk 0:02:13]} 21. Nxb5 {[%clk 0:01:11]}  Rxc1 {[%clk 0:02:14]} 22. Qxc1 {[%clk 0:01:11]}  axb5 {[%clk 0:02:10]} 23. O-O {[%clk 0:01:08]}  Bg5 {[%clk 0:01:57]} 24. Bxg5 {[%clk 0:01:05]}  Qxg5 {[%clk 0:01:58]} 25. Qc7 {[%clk 0:00:58]}  Qe7 {[%clk 0:01:52]} 26. Qxe7 {[%clk 0:00:55]}  Rxe7 {[%clk 0:01:53]} 27. Rc1 {[%clk 0:00:51]}  Rxe5 {[%clk 0:01:50]} 28. Rc5 {[%clk 0:00:51]}  b4 {[%clk 0:01:36]} 29. Rb5 {[%clk 0:00:50]}  Re4 {[%clk 0:01:29]} 30. Rxd5 {[%clk 0:00:36]}  f4 {[%clk 0:01:09]} 31. Rd4 {[%clk 0:00:28]}  Re6 {[%clk 0:00:56]} 32. Rxf4 {[%clk 0:00:27]}  Rb6 {[%clk 0:00:45]} 33. b3 {[%clk 0:00:27]}  Kg7 {[%clk 0:00:41]} 34. g4 {[%clk 0:00:27]}  f6 {[%clk 0:00:33]} 35. Kg2 {[%clk 0:00:26]}  Kf7 {[%clk 0:00:34]} 36. g5 {[%clk 0:00:23]}  Ke6 {[%clk 0:00:34]} 37. Rxf6+ {[%clk 0:00:22]} 1-0


[Site "https://www.chess.com"]

[Event "Titled Tuesday Blitz July 26 Late 2022"]
[White "Bordi, Kevin"]
[Black "Melikhov, Evgeny V."]
[WhiteFideId "621862"]
[BlackFideId "4122046"]
[WhiteElo "2837"]
[BlackElo "1995"]
[Result "1-0"]
[Round "01"]
[TimeControl "180+1"]
[Date "2022.07.26"]
[WhiteClock "0:02:33"]
[BlackClock "0:00:55"]

1. e4 {[%clk 0:03:00]}  e5 {[%clk 0:02:57]} 2. Nf3 {[%clk 0:03:01]}  Nc6 {[%clk 0:02:56]} 3. d4 {[%clk 0:03:01]}  exd4 {[%clk 0:02:55]} 4. Nxd4 {[%clk 0:03:02]}  Bc5 {[%clk 0:02:53]} 5. Be3 {[%clk 0:03:02]}  Qf6 {[%clk 0:02:53]} 6. c3 {[%clk 0:03:02]}  Nge7 {[%clk 0:02:50]} 7. g3 {[%clk 0:03:02]}  h5 {[%clk 0:02:42]} 8. Bg2 {[%clk 0:03:01]}  h4 {[%clk 0:02:36]} 9. f4 {[%clk 0:03:01]}  hxg3 {[%clk 0:02:34]} 10. hxg3 {[%clk 0:03:02]}  Rxh1+ {[%clk 0:02:33]} 11. Bxh1 {[%clk 0:03:03]}  d6 {[%clk 0:02:17]} 12. b4 {[%clk 0:02:58]}  Bb6 {[%clk 0:02:05]} 13. Na3 {[%clk 0:02:58]}  Bd7 {[%clk 0:01:57]} 14. Nc4 {[%clk 0:02:55]}  O-O-O {[%clk 0:01:50]} 15. a4 {[%clk 0:02:55]}  Rh8 {[%clk 0:01:47]} 16. Bg2 {[%clk 0:02:46]}  Rh2 {[%clk 0:01:41]} 17. Kf1 {[%clk 0:02:41]}  Bh3 {[%clk 0:01:24]} 18. Bxh3+ {[%clk 0:02:41]}  Rxh3 {[%clk 0:01:24]} 19. Qg4+ {[%clk 0:02:42]}  Kb8 {[%clk 0:01:14]} 20. Qxh3 {[%clk 0:02:40]}  Nxd4 {[%clk 0:01:13]} 21. Nxb6 {[%clk 0:02:38]}  axb6 {[%clk 0:01:02]} 22. Bxd4 {[%clk 0:02:37]}  Qg6 {[%clk 0:00:59]} 23. Re1 {[%clk 0:02:35]}  Nc6 {[%clk 0:00:56]} 24. a5 {[%clk 0:02:33]}  bxa5 {[%clk 0:00:55]} 25. Qh8+ {[%clk 0:02:33]} 1-0


[Site "https://www.chess.com"]

[Event "Titled Tuesday Blitz July 26 Late 2022"]
[White "Buchenau, Frank"]
[Black "Holt, Conrad"]
[WhiteFideId "4604350"]
[BlackFideId "2034387"]
[WhiteElo "2157"]
[BlackElo "2586"]
[Result "0-1"]
[Round "01"]
[TimeControl "180+1"]
[Date "2022.07.26"]
[WhiteClock "0:00:20"]
[BlackClock "0:00:35"]

1. e4 {[%clk 0:02:58]}  e6 {[%clk 0:02:56]} 2. Nf3 {[%clk 0:02:57]}  d5 {[%clk 0:02:56]} 3. Nc3 {[%clk 0:02:57]}  Nf6 {[%clk 0:02:52]} 4. e5 {[%clk 0:02:57]}  Nfd7 {[%clk 0:02:52]} 5. d4 {[%clk 0:02:58]}  c5 {[%clk 0:02:52]} 6. dxc5 {[%clk 0:02:59]}  Bxc5 {[%clk 0:02:50]} 7. Bd3 {[%clk 0:02:58]}  Nc6 {[%clk 0:02:49]} 8. Bf4 {[%clk 0:02:57]}  f6 {[%clk 0:02:47]} 9. exf6 {[%clk 0:02:57]}  Nxf6 {[%clk 0:02:47]} 10. O-O {[%clk 0:02:57]}  O-O {[%clk 0:02:46]} 11. Ne5 {[%clk 0:02:57]}  Bd7 {[%clk 0:02:39]} 12. Qe2 {[%clk 0:02:57]}  Qe8 {[%clk 0:02:26]} 13. Rae1 {[%clk 0:02:52]}  Nh5 {[%clk 0:02:19]} 14. Bg5 {[%clk 0:02:42]}  Nxe5 {[%clk 0:02:17]} 15. Qxe5 {[%clk 0:02:41]}  Qf7 {[%clk 0:02:17]} 16. Be3 {[%clk 0:02:31]}  b6 {[%clk 0:02:09]} 17. g3 {[%clk 0:02:16]}  Nf6 {[%clk 0:02:05]} 18. Bxc5 {[%clk 0:01:51]}  bxc5 {[%clk 0:02:04]} 19. Qd6 {[%clk 0:01:49]}  c4 {[%clk 0:01:50]} 20. Be2 {[%clk 0:01:48]}  e5 {[%clk 0:01:41]} 21. Bf3 {[%clk 0:01:34]}  e4 {[%clk 0:01:35]} 22. Bg2 {[%clk 0:01:34]}  Rae8 {[%clk 0:01:29]} 23. Ne2 {[%clk 0:01:25]}  Re6 {[%clk 0:01:16]} 24. Qc5 {[%clk 0:01:21]}  Rb6 {[%clk 0:01:15]} 25. b3 {[%clk 0:01:17]}  cxb3 {[%clk 0:01:13]} 26. cxb3 {[%clk 0:01:15]}  Bb5 {[%clk 0:01:10]} 27. Qe3 {[%clk 0:01:00]}  Ng4 {[%clk 0:01:05]} 28. Qd4 {[%clk 0:00:55]}  Nxh2 {[%clk 0:00:51]} 29. Kxh2 {[%clk 0:00:51]}  Bxe2 {[%clk 0:00:50]} 30. Rxe2 {[%clk 0:00:37]}  Qh5+ {[%clk 0:00:50]} 31. Kg1 {[%clk 0:00:37]}  Qxe2 {[%clk 0:00:47]} 32. Qxd5+ {[%clk 0:00:37]}  Kh8 {[%clk 0:00:48]} 33. Bxe4 {[%clk 0:00:30]}  Rbf6 {[%clk 0:00:46]} 34. f4 {[%clk 0:00:22]}  Rh6 {[%clk 0:00:40]} 35. Rf2 {[%clk 0:00:20]}  Qe1+ {[%clk 0:00:36]} 36. Kg2 {[%clk 0:00:20]}  Qh1# {[%clk 0:00:35]} 0-1


[Site "https://www.chess.com"]

[Event "Titled Tuesday Blitz July 26 Late 2022"]
[White "D`Arruda, Ricardo D."]
[Black "Meshkovs, Nikita"]
[WhiteFideId "100692"]
[BlackFideId "11602740"]
[WhiteElo "2416"]
[BlackElo "2506"]
[Result "0-1"]
[Round "01"]
[TimeControl "180+1"]
[Date "2022.07.27"]
[WhiteClock "0:01:19"]
[BlackClock "0:00:31"]

1. d4 {[%clk 0:02:58]}  Nf6 {[%clk 0:02:59]} 2. Nf3 {[%clk 0:02:58]}  e6 {[%clk 0:02:56]} 3. g3 {[%clk 0:02:57]}  b5 {[%clk 0:02:52]} 4. Bg2 {[%clk 0:02:57]}  Bb7 {[%clk 0:02:52]} 5. O-O {[%clk 0:02:57]}  d5 {[%clk 0:02:53]} 6. Bf4 {[%clk 0:02:53]}  Bd6 {[%clk 0:02:51]} 7. Bxd6 {[%clk 0:02:51]}  Qxd6 {[%clk 0:02:41]} 8. Nbd2 {[%clk 0:02:50]}  Nbd7 {[%clk 0:02:38]} 9. c3 {[%clk 0:02:47]}  O-O {[%clk 0:02:28]} 10. a4 {[%clk 0:02:46]}  a6 {[%clk 0:02:25]} 11. Qb3 {[%clk 0:02:44]}  Bc6 {[%clk 0:02:17]} 12. axb5 {[%clk 0:02:42]}  axb5 {[%clk 0:02:18]} 13. Qc2 {[%clk 0:02:35]}  h6 {[%clk 0:02:07]} 14. e3 {[%clk 0:02:34]}  Ra4 {[%clk 0:01:58]} 15. b3 {[%clk 0:02:31]}  Ra3 {[%clk 0:01:55]} 16. Qb2 {[%clk 0:02:29]}  Rfa8 {[%clk 0:01:53]} 17. Rxa3 {[%clk 0:02:29]}  Qxa3 {[%clk 0:01:53]} 18. Qxa3 {[%clk 0:02:27]}  Rxa3 {[%clk 0:01:54]} 19. Rb1 {[%clk 0:02:19]}  Ra2 {[%clk 0:01:52]} 20. Bf1 {[%clk 0:02:16]}  g5 {[%clk 0:01:49]} 21. h3 {[%clk 0:02:08]}  h5 {[%clk 0:01:48]} 22. Rd1 {[%clk 0:02:05]}  g4 {[%clk 0:01:45]} 23. hxg4 {[%clk 0:02:06]}  hxg4 {[%clk 0:01:38]} 24. Nh2 {[%clk 0:02:00]}  Rc2 {[%clk 0:01:38]} 25. Be2 {[%clk 0:01:51]}  Rxc3 {[%clk 0:01:35]} 26. Nxg4 {[%clk 0:01:51]}  Nxg4 {[%clk 0:01:35]} 27. Bxg4 {[%clk 0:01:51]}  Rc2 {[%clk 0:01:29]} 28. Be2 {[%clk 0:01:49]}  Kf8 {[%clk 0:01:13]} 29. Kf1 {[%clk 0:01:49]}  Ke7 {[%clk 0:01:13]} 30. Ke1 {[%clk 0:01:49]}  Nf6 {[%clk 0:01:06]} 31. Bd3 {[%clk 0:01:49]}  Rc3 {[%clk 0:01:04]} 32. Ke2 {[%clk 0:01:37]}  Ne4 {[%clk 0:01:02]} 33. Bxe4 {[%clk 0:01:32]}  dxe4 {[%clk 0:01:03]} 34. Rb1 {[%clk 0:01:28]}  b4 {[%clk 0:01:03]} 35. Kd1 {[%clk 0:01:26]}  f5 {[%clk 0:01:00]} 36. Rc1 {[%clk 0:01:25]}  Rxc1+ {[%clk 0:00:57]} 37. Kxc1 {[%clk 0:01:26]}  Kf6 {[%clk 0:00:53]} 38. Nc4 {[%clk 0:01:25]}  Bd5 {[%clk 0:00:52]} 39. Kc2 {[%clk 0:01:17]}  Bxc4 {[%clk 0:00:33]} 40. bxc4 {[%clk 0:01:17]}  Kg5 {[%clk 0:00:33]} 41. Kb3 {[%clk 0:01:17]}  Kg4 {[%clk 0:00:33]} 42. Kxb4 {[%clk 0:01:17]}  Kf3 {[%clk 0:00:34]} 43. Kc5 {[%clk 0:01:18]}  Kxf2 {[%clk 0:00:34]} 44. Kc6 {[%clk 0:01:18]}  Kxe3 {[%clk 0:00:31]} 45. Kxc7 {[%clk 0:01:19]}  Kxd4 {[%clk 0:00:31]} 0-1


[Site "https://www.chess.com"]